Workbook

Sheet Dataset 1
B2: Data Chart
B4: Distance (m) | C4: Force (N) | D4: Work Done (J) per Interval
B5: 1 | C5: 27
B6: 1.5 | C6: 15
B7: 2 | C7: 24
B8: 2.5 | C8: 18
B9: 3 | C9: 25
B10: 3.5 | C10: 30
B11: 4 | C11: 15
B12: 4.5 | C12: 18
B13: 5 | C13: 13
B14: 5.5 | C14: 16
B15: 6 | C15: 22
B16: 6.5 | C16: 18
B17: 7 | C17: 30
B18: 7.5 | C18: 30
B19: 8 | C19: 20
B20: 8.5 | C20: 17
B21: Total Work Done (J)

Sheet Mathematical Formula
B2: Using Mathematical Formula | J2: Practice Section
B4: Distance (m) | C4: Force (N) | D4: Work Done (J) per Interval | J4: Distance (m) | K4: Force (N) | L4: Work Done (J) per Interval
B5: 1 | C5: 27 | J5: 1 | K5: 27
B6: 1.5 | C6: 15 | D6: =(B6-B5)*(C5+C6)/2 -> 10.5 | J6: 1.5 | K6: 15
B7: 2 | C7: 24 | D7: =(B7-B6)*(C6+C7)/2 -> 9.75 | J7: 2 | K7: 24
B8: 2.5 | C8: 18 | D8: 10.5 | J8: 2.5 | K8: 18
B9: 3 | C9: 25 | D9: 10.75 | J9: 3 | K9: 25
B10: 3.5 | C10: 30 | D10: 13.75 | J10: 3.5 | K10: 30
B11: 4 | C11: 15 | D11: 11.25 | J11: 4 | K11: 15
B12: 4.5 | C12: 18 | D12: 8.25 | J12: 4.5 | K12: 18
B13: 5 | C13: 13 | D13: 7.75 | J13: 5 | K13: 13
B14: 5.5 | C14: 16 | D14: 7.25 | J14: 5.5 | K14: 16
B15: 6 | C15: 22 | D15: 9.5 | J15: 6 | K15: 22
B16: 6.5 | C16: 18 | D16: 10 | J16: 6.5 | K16: 18
B17: 7 | C17: 30 | D17: 12 | J17: 7 | K17: 30
B18: 7.5 | C18: 30 | D18: 15 | J18: 7.5 | K18: 30
B19: 8 | C19: 20 | D19: 12.5 | J19: 8 | K19: 20
B20: 8.5 | C20: 17 | D20: 9.25 | J20: 8.5 | K20: 17
B21: Total Work Done (J) | D21: =SUM(D6:D20) -> 158 | J21: Total Work Done (J)

Sheet SUMPRODUCT
B2: Applying SUMPRODUCT Function | K2: Practice Section
B4: Distance (m) | C4: Force (N) | D4: Total Work Done (J) | K4: Distance (m) | L4: Force (N) | M4: Total Work Done (J)
B5: 1 | C5: 27 | D5: =SUMPRODUCT(B6:B20-B5:B19,(C6:C20+C5:C19)/2) -> 158 | K5: 1 | L5: 27
B6: 1.5 | C6: 15 | K6: 1.5 | L6: 15
B7: 2 | C7: 24 | K7: 2 | L7: 24
B8: 2.5 | C8: 18 | K8: 2.5 | L8: 18
B9: 3 | C9: 25 | K9: 3 | L9: 25
B10: 3.5 | C10: 30 | K10: 3.5 | L10: 30
B11: 4 | C11: 15 | K11: 4 | L11: 15
B12: 4.5 | C12: 18 | K12: 4.5 | L12: 18
B13: 5 | C13: 13 | K13: 5 | L13: 13
B14: 5.5 | C14: 16 | K14: 5.5 | L14: 16
B15: 6 | C15: 22 | K15: 6 | L15: 22
B16: 6.5 | C16: 18 | K16: 6.5 | L16: 18
B17: 7 | C17: 30 | K17: 7 | L17: 30
B18: 7.5 | C18: 30 | K18: 7.5 | L18: 30
B19: 8 | C19: 20 | K19: 8 | L19: 20
B20: 8.5 | C20: 17 | K20: 8.5 | L20: 17

Sheet VBA Macro
B2: Utilizing VBA Macro | K2: Practice Section
B4: Distance (m) | C4: Force (N) | D4: Total Work Done (J) | K4: Distance (m) | L4: Force (N) | M4: Total Work Done (J)
B5: 1 | C5: 27 | D5: =TrapezoidalIntegration(B5:B20,C5:C20) -> 158 | K5: 1 | L5: 27
B6: 1.5 | C6: 15 | K6: 1.5 | L6: 15
B7: 2 | C7: 24 | K7: 2 | L7: 24
B8: 2.5 | C8: 18 | K8: 2.5 | L8: 18
B9: 3 | C9: 25 | K9: 3 | L9: 25
B10: 3.5 | C10: 30 | K10: 3.5 | L10: 30
B11: 4 | C11: 15 | K11: 4 | L11: 15
B12: 4.5 | C12: 18 | K12: 4.5 | L12: 18
B13: 5 | C13: 13 | K13: 5 | L13: 13
B14: 5.5 | C14: 16 | K14: 5.5 | L14: 16
B15: 6 | C15: 22 | K15: 6 | L15: 22
B16: 6.5 | C16: 18 | K16: 6.5 | L16: 18
B17: 7 | C17: 30 | K17: 7 | L17: 30
B18: 7.5 | C18: 30 | K18: 7.5 | L18: 30
B19: 8 | C19: 20 | K19: 8 | L19: 20
B20: 8.5 | C20: 17 | K20: 8.5 | L20: 17

Sheet Dataset 2
B2: Applying Midpoint Rule
B4: n Value | C4: x Value | D4: f(x) Value | E4: Integral Value
B5: 1
B6: =1+B5 -> 2
B7: =1+B6 -> 3
B8: 4
B9: 5
B10: 6
B11: 7
B12: 8
B13: 9
B14: 10
B15: 11
B16: 12
B17: 13
B18: 14
B19: 15
B20: Final Integral Value
B22: dx=(b-a)/15
B23: dx/2

Sheet Midpoint Rule
B2: Applying Midpoint Rule | L2: Practice Section
B4: n Value | C4: x Value | D4: f(x) Value | E4: Integral Value | L4: n Value | M4: x Value | N4: f(x) Value | O4: Integral Value
B5: 1 | C5: =1+C23 -> 1.133333333 | D5: =(1+(C5^3)) -> 2.455703704 | E5: =D5*$C$22 -> 0.654854321 | L5: 1
B6: =1+B5 -> 2 | C6: =C5+$C$22 -> 1.4 | D6: =(1+(C6^3)) -> 3.744 | E6: 0.9984 | L6: =1+L5 -> 2
B7: =1+B6 -> 3 | C7: 1.666666667 | D7: 5.62962963 | E7: 1.501234568 | L7: =1+L6 -> 3
B8: 4 | C8: 1.933333333 | D8: 8.22637037 | E8: 2.193698765 | L8: 4
B9: 5 | C9: 2.2 | D9: 11.648 | E9: 3.106133333 | L9: 5
B10: 6 | C10: 2.466666667 | D10: 16.0082963 | E10: 4.268879012 | L10: 6
B11: 7 | C11: 2.733333333 | D11: 21.42103704 | E11: 5.712276543 | L11: 7
B12: 8 | C12: 3 | D12: 28 | E12: 7.466666667 | L12: 8
B13: 9 | C13: 3.266666667 | D13: 35.85896296 | E13: 9.562390123 | L13: 9
B14: 10 | C14: 3.533333333 | D14: 45.1117037 | E14: 12.02978765 | L14: 10
B15: 11 | C15: 3.8 | D15: 55.872 | E15: 14.8992 | L15: 11
B16: 12 | C16: 4.066666667 | D16: 68.25362963 | E16: 18.2009679 | L16: 12
B17: 13 | C17: 4.333333333 | D17: 82.37037037 | E17: 21.9654321 | L17: 13
B18: 14 | C18: 4.6 | D18: 98.336 | E18: 26.22293333 | L18: 14
B19: 15 | C19: 4.866666667 | D19: 116.2642963 | E19: 31.00381235 | L19: 15
B20: Final Integral Value | E20: =SUM(E5:E19) -> 159.7866667 | L20: Final Integral Value
B22: dx=(b-a)/15 | C22: =(5-1)/15 -> 0.2666666667 | L22: dx=(b-a)/15
B23: dx/2 | C23: =C22/2 -> 0.1333333333 | L23: dx/2
